bitfinex/quotes_ETHUSD_20251201
["timestamp","ask_amount","ask_price","bid_price","bid_amount"]
[1764574756292,0.629504,2842.9,2842.5,3.5180299]
[1764574756692,0.629504,2842.9,2842.4,3.97283493]
[1764574757041,0.4683,2842.8,2842.3,3.51923872]
[1764574757447,4.73033013,2842.9,2842.3,7.03751617]
[1764574757448,1.21278349,2842.9,2842.3,7.03751617]
[1764574757834,4.7303259,2842.9,2842.3,7.03751617]
[1764574758004,0.0809,2842.4,2842.3,0.001]
[1764574758211,0.405504,2842.4,2842.3,0.001]
[1764574758513,0.405504,2842.5,2842.3,0.001]
[1764574759339,0.0847,2842.4,2842.3,0.001]
[1764574762243,0.4644,2842.8,2842.3,0.4901]
[1764574762435,4.14729803,2842.7,2842.4,0.4891]
[1764574762638,4.14729803,2842.7,2842.3,0.001]
[1764574762806,0.629504,2842.7,2842.3,0.001]
[1764574763012,1.35509811,2842.7,2842.3,3.51927229]
[1764574763254,0.0809,2842.4,2842.3,0.001]
[1764574764429,4.00455767,2842.4,2842.3,0.001]
[1764574765015,5.19455178,2842.4,2842.3,0.001]
[1764574765938,5.41855178,2842.4,2842.3,0.001]
[1764574767149,5.40652504,2842.4,2842.3,0.001]
[1764574767315,6.57872471,2842.4,2842.3,0.001]
[1764574767733,0.405504,2842.1,2841.1,0.1993]
[1764574768046,0.405504,2841.7,2841.1,0.1993]
[1764574768243,0.405504,2841.9,2841.1,4.21903999]
[1764574768617,0.405504,2841.9,2841.1,7.27400346]
[1764574768821,0.405504,2841.7,2841.3,3.51951571]
[1764574769447,0.405504,2841.7,2841.4,0.4648]
[1764574770723,0.224,2841.8,2841.6,3.98012366]
[1764574770919,0.1686,2842.9,2841.7,0.4611]
[1764574771120,3.91020027,2842.9,2842.1,0.4611]
[1764574771355,1.11661414,2842.8,2842.2,0.1842]
[1764574772148,0.72559411,2842.6,2841.8,0.4648]
[1764574772451,0.225,2842.5,2841.8,0.4648]
[1764574773342,3.92365767,2842.4,2841.8,3.98369647]
[1764574773649,0.405504,2842.4,2841.8,3.98369647]
[1764574774244,0.405504,2842.4,2841.8,7.50259294]
[1764574774621,0.405504,2842.4,2841.8,3.98369647]
[1764574774822,0.1686,2842.9,2842.3,0.6453]
[1764574775058,0.1686,2842.9,2842.4,0.4611]
[1764574775059,0.224,2842.8,2842.4,0.4611]
[1764574775242,0.224,2842.8,2842.4,4.44396795]
[1764574775952,0.225,2842.8,2842.4,3.97916795]
[1764574776153,0.225,2842.8,2842.5,0.4648]
[1764574776653,0.224,2842.8,2842.5,0.4648]
[1764574776857,0.94959411,2842.8,2842.5,0.4648]
[1764574777630,0.94959411,2842.8,2842.4,3.51806795]
[1764574777831,0.94959411,2842.8,2842.4,0.4648]
[1764574777832,0.72559411,2842.7,2842.4,0.4648]
[1764574778032,0.94959411,2842.8,2842.4,0.4648]
[1764574779359,0.224,2842.8,2842.4,0.4648]
[1764574779557,3.74167484,2842.8,2842.4,0.4648]
[1764574779861,0.405504,2842.7,2842.3,0.1842]
[1764574780065,0.405504,2842.7,2842.1,3.70266127]
[1764574780356,0.405504,2842.7,2842.1,4.49376563]
[1764574780733,0.405504,2842.7,2842.1,8.47709066]
[1764574780933,0.405504,2842.7,2842.2,0.4648]
[1764574781465,0.405504,2842.7,2842.3,3.51827745]
[1764574782057,0.405504,2842.7,2842.3,3.98307745]
[1764574782254,0.405504,2842.7,2842.3,3.51827745]
[1764574782439,0.405504,2842.7,2842.4,0.4648]
[1764574784060,0.405504,2842.7,2842.4,3.98291806]
[1764574784264,0.224,2842.7,2842.4,3.98291806]
[1764574785545,0.224,2842.7,2842.4,0.4648]
[1764574785747,0.224,2842.7,2842.2,3.98313498]
[1764574785949,0.224,2842.7,2842.3,0.4648]
[1764574786773,0.0464,2842.4,2842.1,0.1842]
[1764574787076,0.0464,2842.2,2841.5,0.224]
[1764574787254,0.224,2842.3,2841.5,0.6888]
[1764574787642,1.13109811,2842.1,2841.6,0.4648]
[1764574787842,0.405504,2841.9,2841.4,0.001]
[1764574788266,0.405504,2841.9,2841.5,0.4648]
[1764574788640,0.629504,2841.9,2841.5,0.4648]
[1764574789461,0.46494993,2842.0,2841.8,0.4611]
[1764574789669,0.224,2842.0,2841.9,0.4611]
[1764574789856,0.224,2842.0,2841.6,3.51908988]
[1764574789857,0.94959411,2842.0,2841.6,3.51908988]
[1764574790064,0.224,2842.0,2841.6,3.51908988]
[1764574790388,0.224,2842.0,2841.6,0.3494024]
[1764574790589,3.74267094,2842.0,2841.4,0.4658]
[1764574790774,3.74267094,2842.0,2841.4,0.001]
[1764574790775,0.493,2841.7,2841.4,0.001]
[1764574791280,0.224,2841.8,2841.6,0.4611]
[1764574791465,0.405504,2842.0,2841.5,1.22558678]
[1764574791671,0.224,2842.0,2841.7,0.4611]
[1764574791868,0.224,2842.0,2841.8,0.72559411]
[1764574792771,0.224,2842.0,2841.6,4.70947281]
[1764574793490,0.224,2842.0,2841.6,4.74466425]
[1764574793656,0.224,2842.0,2841.6,4.70947281]
[1764574793856,0.224,2842.0,2841.6,3.9838787]
[1764574794058,0.224,2842.0,2841.6,0.4648]
[1764574794386,0.224,2842.0,2841.6,3.9839101]
[1764574794983,0.224,2842.0,2841.5,0.001]
[1764574794984,0.4832,2841.7,2841.5,0.001]
[1764574795187,0.884404,2841.6,2841.5,0.001]
[1764574795366,1.108404,2841.6,2841.5,0.001]
[1764574797060,5.87437494,2841.6,2841.5,0.001]
[1764574797782,0.46273269,2841.6,2841.5,0.001]
[1764574797972,0.6987,2841.6,2841.5,0.001]
[1764574799264,0.224,2841.6,2841.5,0.4815]
[1764574800165,0.78829411,2842.1,2841.5,0.4815]
[1764574800363,0.224,2842.0,2841.7,0.4805]
[1764574800979,0.224,2842.0,2841.7,0.9633]
[1764574801173,0.224,2842.0,2841.7,0.4805]
[1764574801386,0.405504,2841.7,2841.5,0.001]
[1764574801604,0.629504,2841.6,2841.5,0.001]
[1764574801762,0.224,2841.6,2841.5,0.001]
[1764574802086,0.224,2841.6,2841.5,0.4815]
[1764574802488,0.2713,2841.6,2841.5,0.001]
[1764574802694,4.68174814,2841.6,2841.5,0.001]
[1764574802984,1.49688227,2841.6,2841.5,0.001]
[1764574803191,5.01602641,2841.6,2841.5,0.001]
[1764574803813,12.27170752,2841.6,2841.5,0.001]
[1764574803986,25.55781452,2841.6,2841.5,0.001]
[1764574804160,8.95253652,2841.6,2841.5,0.001]
[1764574804490,9.95830552,2841.6,2841.5,0.001]
[1764574806083,8.34538778,2841.6,2841.5,0.001]
[1764574806963,30.56347678,2841.6,2841.5,0.001]
[1764574807173,27.76111678,2841.6,2841.5,0.001]
[1764574807398,17.71261038,2841.6,2841.5,0.001]
[1764574807717,13.49947138,2841.6,2841.5,0.001]
[1764574808015,16.62937738,2841.6,2841.5,0.001]
[1764574808395,17.63665058,2841.2,2841.1,0.001]
[1764574808586,26.31244117,2841.2,2841.1,0.001]
[1764574808895,26.79824117,2841.2,2841.1,0.001]
[1764574809917,18.08813917,2841.2,2841.1,0.001]
[1764574810997,23.60426817,2841.2,2841.1,0.001]
[1764574811200,24.42434644,2841.2,2841.1,0.001]
[1764574811396,0.405504,2840.9,2840.6,0.001]
[1764574811605,1.13589811,2840.7,2840.6,0.001]
[1764574812004,1.35989811,2840.7,2840.6,0.001]
[1764574812387,0.224,2840.7,2840.6,0.4815]
[1764574813133,0.629504,2840.7,2840.6,0.9643]
[1764574813633,1.35509811,2840.7,2840.6,0.9643]
[1764574813829,4.8753572,2840.7,2840.6,0.4815]
[1764574814032,4.8753572,2840.7,2840.6,0.001]
[1764574814033,14.93890324,2840.7,2840.6,0.001]
[1764574816537,14.98890324,2840.7,2840.6,0.001]
[1764574817222,19.82569615,2840.7,2840.6,0.001]
[1764574819528,19.60169615,2840.7,2840.6,0.001]
[1764574819825,19.82569615,2840.7,2840.6,0.001]
[1764574820227,19.53667115,2840.7,2840.6,0.001]
[1764574820427,7.26041076,2840.7,2840.6,0.001]
[1764574820629,4.4698532,2840.7,2840.6,0.001]
[1764574820834,4.8753572,2840.7,2840.6,0.001]
[1764574821033,4.4698532,2840.7,2840.6,0.001]
[1764574821418,4.8753572,2840.7,2840.6,0.001]
[1764574825148,22.18569168,2840.7,2840.6,0.001]
[1764574825440,18.19921564,2840.7,2840.6,0.001]
[1764574826218,17.54742864,2840.7,2840.6,0.001]
[1764574826418,14.27080864,2840.7,2840.6,0.001]
[1764574826630,13.80460864,2840.7,2840.6,0.001]
[1764574829021,13.80660864,2840.7,2840.6,0.001]
[1764574830807,0.002,2840.7,2840.6,0.9405]
[1764574831009,0.002,2840.7,2840.6,0.4713]
[1764574831237,3.52225909,2840.7,2840.6,0.4713]
[1764574831429,4.6533572,2840.7,2840.6,0.4713]
[1764574831615,0.72759411,2840.7,2840.6,0.9405]
[1764574832239,0.002,2840.7,2840.6,0.9405]
[1764574832650,0.407504,2840.7,2840.6,0.9405]
[1764574832816,0.002,2840.7,2840.6,0.9405]
[1764574833543,0.631504,2840.7,2840.6,0.4713]
[1764574833952,0.631504,2840.7,2840.6,0.001]
[1764574833953,14.16627784,2840.7,2840.6,0.001]
[1764574834249,5.36508136,2840.7,2840.6,0.4713]
[1764574834549,5.36508136,2840.7,2840.6,0.9405]
[1764574835044,5.36508136,2840.7,2840.6,0.4713]
[1764574835847,4.8773572,2840.7,2840.6,0.4713]
[1764574838251,1.35709811,2840.7,2840.6,0.4713]
[1764574838431,1.35709811,2840.7,2840.6,0.9405]
[1764574838638,0.95159411,2840.7,2840.6,0.9405]
[1764574838851,4.4718532,2840.7,2840.6,0.9405]
[1764574839222,0.95159411,2840.7,2840.6,0.9405]
[1764574839547,4.8773572,2840.7,2840.6,0.9405]
[1764574839920,4.8773572,2840.7,2840.6,0.001]
[1764574840120,5.36509292,2840.7,2840.6,0.4713]
[1764574841222,4.8773572,2840.7,2840.6,0.4713]
[1764574842358,11.1635823,2840.7,2840.6,0.4713]
[1764574843451,11.1635823,2840.7,2840.6,0.9405]
[1764574843652,11.1635823,2840.7,2840.6,0.4713]
[1764574844556,11.1635823,2840.7,2840.6,0.9405]
[1764574845165,11.1635823,2840.7,2840.6,0.4713]
[1764574846230,11.1635823,2840.7,2840.6,0.9405]
[1764574846434,1.35709811,2840.7,2840.6,0.9405]
[1764574848532,0.002,2840.7,2840.6,0.9405]
[1764574848733,0.631504,2840.7,2840.6,0.9405]
[1764574854173,4.64476309,2840.7,2840.6,0.001]
[1764574854471,6.47054652,2840.7,2840.6,0.001]
[1764574854772,6.61169202,2840.7,2840.6,0.001]
[1764574857872,12.52866902,2840.7,2840.6,0.001]
[1764574858448,25.57218764,2840.7,2840.6,0.001]
[1764574860086,25.57218764,2840.7,2840.3,0.001]
[1764574860087,1.18109811,2840.6,2840.3,0.001]
[1764574860371,23.30744254,2840.2,2840.0,0.001]
[1764574860545,23.53634254,2840.2,2840.0,0.001]
[1764574860745,24.02114254,2840.2,2840.0,0.001]
[1764574860941,1.35509811,2840.2,2840.1,0.6998]
[1764574861210,0.002,2840.7,2840.1,1.1711]
[1764574861374,6.52175931,2840.3,2840.2,0.4713]
[1764574861971,6.52175931,2840.3,2840.2,0.9712]
[1764574862177,0.405504,2840.4,2840.2,0.9712]
[1764574862362,0.72559411,2840.6,2840.3,0.4713]
[1764574862771,0.72559411,2840.6,2840.5,0.4999]
[1764574862958,7.24735342,2840.6,2840.5,0.9712]
[1764574863353,7.65285742,2840.6,2840.5,0.9712]
[1764574863553,18.81231249,2840.6,2840.5,0.4999]
[1764574863987,12.29055318,2840.6,2840.5,0.4999]
[1764574864675,0.405504,2840.5,2840.1,0.6712]
[1764574864876,0.405504,2840.5,2840.2,0.4713]
[1764574865183,6.52175931,2840.4,2840.2,0.4713]
[1764574865780,6.92726331,2840.4,2840.3,0.4999]
[1764574866175,6.92726331,2840.4,2840.3,0.9712]
[1764574867180,0.405504,2840.4,2840.3,0.9712]
[1764574868485,6.92726331,2840.4,2840.3,0.9712]
[1764574870283,0.405504,2840.4,2840.3,0.9712]
[1764574872104,0.002,2840.7,2840.3,0.9712]
[1764574872304,1.13109811,2840.6,2840.4,0.4713]
[1764574872694,1.13109811,2840.6,2840.5,0.4999]
[1764574873082,1.13109811,2840.6,2840.5,0.9712]
[1764574874588,0.407504,2840.7,2840.5,0.9712]
[1764574874794,0.407504,2840.7,2840.6,0.4999]
[1764574874983,7.65485742,2840.7,2840.6,0.4999]
[1764574875494,0.002,2841.0,2840.6,0.9712]
[1764574875803,0.002,2841.0,2840.9,0.4999]
[1764574876187,0.002,2841.0,2840.9,0.9712]
[1764574876399,0.002,2841.3,2841.0,7.03977472]
[1764574876586,0.002,2841.3,2841.2,0.6988]
[1764574876975,0.002,2841.3,2841.2,1.1701]
[1764574877180,0.002,2841.3,2841.2,1.99108747]
[1764574877792,0.002,2841.3,2841.2,1.1701]
[1764574880487,0.407504,2841.3,2841.2,0.4999]
[1764574881015,0.407504,2841.3,2841.2,0.9712]
[1764574885920,0.407504,2841.3,2841.2,4.49083958]
[1764574886116,0.407504,2841.3,2841.2,0.9712]
[1764574888053,0.002,2841.3,2841.2,4.49083958]
[1764574888447,0.002,2841.3,2841.2,5.31180042]
[1764574888816,0.002,2841.3,2841.2,12.05755973]
[1764574889049,0.002,2841.3,2841.2,5.53580042]
[1764574890027,0.002,2841.3,2841.2,5.31180042]
[1764574890231,0.002,2841.3,2841.2,5.53580042]
[1764574890950,0.002,2841.3,2841.2,5.57099681]
[1764574891950,0.002,2841.3,2841.2,6.29659092]
[1764574892149,0.002,2841.3,2841.2,12.78315384]
[1764574893049,0.002,2841.3,2841.2,6.26139453]
[1764574894461,0.002,2841.3,2841.2,6.03739453]
[1764574894963,0.002,2841.3,2841.2,6.26139453]
[1764574895152,0.002,2841.3,2841.2,5.53580042]
[1764574895932,0.002,2841.3,2841.2,0.4999]
[1764574896132,0.002,2841.3,2841.2,4.51133958]
[1764574896459,0.002,2841.3,2841.2,11.29229528]
[1764574896637,0.002,2841.3,2841.2,11.25709889]
[1764574897031,0.002,2841.6,2841.5,6.52175931]
[1764574897230,0.002,2841.6,2841.5,4.66553659]
[1764574897460,0.002,2841.6,2841.5,5.15733659]
[1764574898661,1.099924,2842.4,2841.6,0.4918]
[1764574898865,0.405504,2842.4,2841.8,0.4589]
[1764574899071,0.224,2842.6,2842.3,0.4589]
[1764574899374,6.74575931,2842.6,2842.3,0.6472]
[1764574899538,0.405504,2842.5,2842.3,4.16546287]
[1764574900043,0.405504,2842.5,2842.3,0.6472]
[1764574900444,0.405504,2842.5,2842.3,4.16542662]
[1764574900848,0.405504,2842.6,2842.3,4.16542662]
[1764574901034,0.405504,2842.6,2842.4,0.4589]
[1764574901236,0.405504,2842.6,2842.1,4.01030446]
[1764574901453,0.405504,2842.6,2842.1,3.51850446]
[1764574901657,0.405504,2842.6,2842.2,0.4918]
[1764574903287,0.405504,2842.6,2842.3,3.51827745]
[1764574903587,0.405504,2842.6,2842.2,4.01015208]
[1764574904085,0.405504,2842.6,2842.3,0.4918]
[1764574904461,1.13109811,2842.7,2842.3,0.4918]
[1764574905370,0.405504,2842.7,2842.3,4.01001315]
[1764574905891,0.405504,2842.8,2842.6,0.4589]
[1764574906575,0.405504,2842.9,2842.7,0.4589]
[1764574906776,0.405504,2842.9,2842.8,0.4589]
[1764574907090,0.224,2843.0,2842.8,0.4589]
[1764574907293,0.224,2843.2,2842.9,0.4589]
[1764574907459,0.405504,2843.1,2842.9,0.4589]
[1764574907792,0.405504,2843.1,2842.7,3.51774916]
[1764574908290,0.405504,2843.1,2842.7,0.4918]
[1764574908467,0.405504,2843.1,2842.7,4.00955811]
[1764574908867,0.405504,2843.1,2842.7,7.03554049]
[1764574909071,0.405504,2843.1,2842.8,0.4918]
[1764574909279,0.405504,2843.1,2842.9,3.51753491]
[1764574909605,0.405504,2843.1,2843.0,0.4589]
[1764574910805,0.405504,2843.3,2843.0,0.4589]
[1764574911014,0.405504,2843.3,2843.0,0.9507]
[1764574911303,0.405504,2843.3,2843.0,4.46808964]
[1764574911500,0.405504,2843.3,2843.2,0.4589]
[1764574912206,0.405504,2843.3,2843.0,3.51738964]
[1764574912694,10.61746403,2843.3,2842.8,0.4918]
[1764574913280,10.61746403,2843.3,2842.7,3.51771889]
[1764574913480,11.07276403,2843.3,2842.7,3.74071889]
[1764574914207,11.07276403,2843.3,2842.7,7.73680127]
[1764574915279,11.07276403,2843.3,2842.1,7.25995508]
[1764574915280,6.69489173,2842.8,2842.1,7.25995508]
[1764574915473,0.405504,2842.9,2842.5,0.4783]
[1764574915678,0.405504,2842.9,2842.7,0.4573]
[1764574915879,0.405504,2842.9,2842.5,0.4783]
[1764574916425,0.405504,2842.5,2842.0,4.40820322]
[1764574916629,7.8198053,2842.5,2842.0,4.18520322]
[1764574916807,7.10039573,2842.5,2842.0,3.92990322]
[1764574917128,7.10039573,2842.5,2842.0,7.73855205]
[1764574917332,7.10039573,2842.5,2842.1,0.4783]
[1764574917525,7.10039573,2842.5,2842.2,3.51840123]
[1764574917829,7.10039573,2842.5,2842.1,3.99676268]
[1764574918633,0.405504,2842.6,2842.1,4.19446268]
[1764574919925,0.405504,2842.4,2842.0,3.51864883]
[1764574920421,0.405504,2842.5,2842.0,7.51559766]
[1764574920746,0.405504,2842.6,2842.4,0.4573]
[1764574920944,0.1706,2842.9,2842.5,0.4573]
[1764574921229,0.405504,2842.8,2842.5,0.4573]
[1764574921597,0.405504,2842.8,2842.1,0.1977]
[1764574921598,0.0937,2842.6,2842.2,0.223]
[1764574921815,0.0937,2842.6,2842.2,3.74136103]
[1764574922025,0.4517,2842.3,2842.1,3.51846186]
[1764574923743,0.405504,2842.4,2842.2,3.97563325]
[1764574924027,6.13812575,2842.6,2842.2,3.97563325]
[1764574924028,0.405504,2842.5,2842.2,3.97563325]
[1764574924236,0.405504,2842.5,2842.2,0.4573]
[1764574924398,0.405504,2842.5,2842.2,3.97569812]
[1764574924598,0.405504,2842.2,2841.9,0.001]
[1764574924810,0.405504,2842.2,2841.9,3.51976665]
[1764574925030,0.405504,2842.2,2841.9,3.99806665]
[1764574925408,0.94859411,2842.7,2842.1,0.4573]
[1764574925732,0.405504,2842.6,2842.1,0.4573]
[1764574925933,0.405504,2842.6,2842.1,4.17348917]
[1764574926229,0.860804,2842.6,2842.1,4.17348917]
[1764574926413,4.37871967,2842.6,2842.1,4.17348917]
[1764574927643,0.860804,2842.6,2842.1,4.65178917]
[1764574928638,0.860804,2842.6,2841.9,0.001]
[1764574928639,6.19942575,2842.5,2841.9,3.51971363]
[1764574928807,0.405504,2842.5,2842.1,0.676]
[1764574929815,0.405504,2842.5,2842.1,0.1977]
[1764574930342,0.405504,2842.5,2842.1,3.71614106]
[1764574930848,4.92176665,2842.7,2842.2,0.4783]
[1764574930849,1.40389411,2842.7,2842.2,0.4783]
[1764574931051,0.405504,2842.6,2842.2,0.4783]
[1764574931214,0.405504,2842.6,2842.1,3.71614106]
[1764574931443,0.860804,2842.6,2842.1,7.71296609]
[1764574932244,0.405504,2842.6,2842.1,7.03696609]
[1764574932446,0.860804,2842.6,2842.0,7.03729766]
[1764574932646,0.405504,2842.6,2842.1,0.71118525]
[1764574932847,0.405504,2842.6,2842.1,0.676]
[1764574935080,0.405504,2842.6,2842.2,3.51840123]
[1764574935578,0.405504,2842.6,2842.2,7.03680246]
[1764574936268,0.405504,2842.6,2842.2,7.51510246]
[1764574936444,0.407504,2842.6,2842.2,7.91588453]
[1764574936946,0.407504,2842.6,2842.2,4.3974833]
[1764574937143,0.407504,2842.6,2842.2,3.51840123]
[1764574937369,0.862804,2842.6,2842.2,3.51840123]
[1764574937536,0.862804,2842.6,2842.1,3.71621124]
[1764574937737,0.862804,2842.6,2842.1,7.23473627]
[1764574938247,0.862804,2842.6,2842.1,7.71303627]
[1764574940158,0.862804,2842.6,2842.1,8.83631624]
[1764574940757,0.407504,2842.6,2842.5,0.4573]
[1764574940958,0.002,2842.6,2842.5,0.4573]
[1764574941157,0.002,2842.6,2842.5,0.9356]
[1764574941463,0.002,2842.6,2842.5,4.4536299]
[1764574941667,0.002,2842.6,2842.5,5.25080682]
[1764574941879,0.002,2842.6,2842.5,5.47380682]
[1764574944049,0.40278083,2843.4,2842.5,12.03156662]
[1764574944252,0.40278083,2843.4,2842.6,0.4671]
[1764574944579,0.72559411,2843.2,2842.5,3.9753299]
[1764574944780,0.72559411,2843.2,2842.6,0.4671]
[1764574944781,1.80880777,2843.2,2842.6,0.4671]
[1764574944985,2.26030777,2843.2,2842.6,0.4671]
[1764574945485,1.80880777,2843.2,2842.6,0.4671]
[1764574945669,2.26210777,2843.2,2842.6,0.4671]
[1764574945874,1.53651366,2843.2,2842.7,3.51778238]
[1764574946075,0.405504,2843.1,2842.7,3.51778238]
[1764574946782,0.405504,2843.1,2842.7,7.03556476]
[1764574946984,0.405504,2843.1,2842.7,7.49086476]
[1764574947563,0.405504,2843.3,2842.7,7.49086476]
[1764574948282,4.19313536,2843.5,2842.7,8.1364519]
[1764574948283,0.72559411,2843.5,2842.7,8.1364519]
[1764574948477,0.405504,2843.4,2843.2,0.4529]
[1764574949586,0.405504,2843.4,2842.9,0.4553]
[1764574950283,0.405504,2843.5,2843.3,0.4529]
[1764574950585,0.405504,2843.5,2843.1,0.1821]
[1764574950882,0.405504,2843.5,2843.4,0.4529]
[1764574951083,0.3899,2843.9,2843.4,0.4529]
[1764574951285,0.223,2843.9,2843.5,0.4553]
[1764574951659,0.223,2843.9,2843.1,1.17232224]
[1764574951660,0.3899,2843.9,2843.3,0.4553]
[1764574951982,0.405504,2843.8,2843.3,0.4553]
[1764574952283,0.0957,2843.4,2843.2,3.51716375]
[1764574952484,0.0045,2843.3,2843.1,3.51724648]
[1764574952688,0.0948,2843.2,2842.9,3.74044175]
[1764574952877,0.0948,2843.2,2842.9,7.88908532]
[1764574953077,0.0948,2843.2,2842.9,8.34438532]
[1764574953382,0.628504,2843.5,2843.1,0.4529]
[1764574953685,1.35409811,2843.5,2843.1,0.4529]
[1764574954091,1.80739811,2843.5,2842.9,4.37155041]
[1764574954285,1.80739811,2843.5,2842.9,3.51744175]
[1764574954486,0.4514,2843.0,2842.7,3.51775281]
[1764574954987,0.4514,2843.0,2842.7,7.03553519]
[1764574955387,0.4514,2843.0,2842.7,7.49083519]
[1764574956598,0.405504,2843.4,2842.9,0.4529]
[1764574956770,0.405504,2843.4,2842.9,0.9082]
[1764574957171,0.002,2843.5,2843.0,0.49047411]
[1764574959099,0.002,2843.5,2843.4,3.96981636]
[1764574959771,0.405504,2843.4,2843.3,3.51697767]
[1764574959967,0.0045,2843.3,2843.2,3.51707598]
[1764574961398,0.0045,2843.3,2843.0,7.03482236]
[1764574961799,0.407504,2843.5,2843.1,0.03517287]
[1764574961985,0.407504,2843.5,2843.4,0.4529]
[1764574962380,0.407504,2843.5,2843.1,1.24300239]
[1764574962581,0.002,2843.5,2843.2,0.4553]
[1764574962801,0.002,2843.5,2843.4,0.4529]
[1764574963103,0.002,2843.5,2843.2,0.4553]
[1764574963303,0.002,2843.5,2843.2,1.63482359]
[1764574963699,0.002,2843.5,2843.3,7.0340801]
[1764574965709,0.002,2843.5,2843.2,5.1519468]
[1764574965913,0.002,2843.5,2843.2,3.51712321]
[1764574966205,0.002,2843.5,2843.2,7.03428696]
[1764574969115,0.002,2843.5,2842.6,3.51789163]
[1764574969116,0.405504,2843.2,2842.5,7.0360598]
[1764574969415,0.860804,2843.5,2842.7,0.4553]
[1764574970216,10.10834211,2843.4,2842.7,3.51778238]
[1764574970393,0.405504,2843.2,2842.7,3.51778238]
[1764574970593,0.628504,2843.2,2842.7,3.51778238]
[1764574970816,0.628504,2843.2,2842.7,7.49086476]
[1764574971114,0.628504,2843.2,2842.7,3.97308238]
[1764574971417,1.081804,2843.2,2842.7,7.49086476]
[1764574972189,0.628504,2843.2,2842.7,7.49086476]
[1764574972389,0.628504,2843.2,2843.0,0.001]
[1764574972886,0.501204,2843.1,2843.0,0.001]
[1764574978111,0.405504,2843.1,2843.0,0.001]
[1764574978339,0.405504,2843.1,2843.0,0.4568]
[1764574978544,0.628504,2843.4,2843.0,0.4568]
[1764574979045,1.099204,2843.4,2843.0,0.4568]
[1764574979219,0.0785,2843.1,2843.0,0.001]
[1764574980010,0.4668,2843.3,2843.0,0.001]
[1764574980305,0.628504,2843.4,2843.0,0.001]
[1764574980510,1.099204,2843.4,2843.0,0.001]
[1764574980711,0.002,2843.5,2843.3,0.4558]
[1764574980928,0.407504,2843.5,2843.3,0.4558]
[1764574981710,0.407504,2843.5,2843.3,3.97280561]
[1764574981935,0.002,2843.5,2843.3,3.97280561]
[1764574982142,0.0785,2843.4,2843.1,3.51721881]
[1764574982312,0.0785,2843.4,2843.1,4.37449069]
[1764574982506,0.002,2843.5,2843.3,0.4558]
[1764574982719,0.002,2843.5,2843.2,0.4595]
[1764574982933,0.002,2843.5,2843.4,0.4558]
[1764574983545,0.002,2843.5,2843.2,0.4595]
[1764574983546,0.0805,2843.5,2843.3,3.51704005]
[1764574984113,0.002,2843.5,2843.4,0.4558]
[1764574984410,0.002,2843.5,2843.4,8.40145024]
[1764574985543,0.002,2843.5,2843.4,5.22716426]
[1764574986109,0.002,2843.5,2843.4,5.45016426]
[1764574986310,0.002,2843.5,2843.4,12.1413666]
[1764574989218,0.002,2843.5,2843.4,12.86696071]
[1764574989742,0.002,2843.5,2843.4,6.17575837]
[1764574990322,0.002,2843.5,2843.4,5.95375837]
[1764574990522,0.002,2843.5,2843.4,6.17675837]
[1764574990941,0.002,2843.5,2843.4,5.95375837]
[1764574991133,0.002,2843.5,2843.4,5.45116426]
[1764574993051,0.0805,2843.5,2843.4,4.31286426]
[1764574993352,0.0805,2843.5,2843.4,0.001]
[1764574993944,11.16079902,2843.5,2843.4,0.001]
[1764574994258,7.64400634,2843.5,2843.4,0.001]
[1764574994428,0.952804,2843.5,2843.4,0.001]
[1764574996761,0.486004,2843.5,2843.4,0.001]
[1764574998834,0.952804,2843.5,2843.4,0.001]
[1764575002564,0.486004,2843.5,2843.4,0.001]
[1764575003444,0.952804,2843.5,2843.4,0.001]
[1764575004739,12.29916848,2843.5,2843.4,0.001]
[1764575005571,2.09117346,2843.5,2843.4,0.001]
[1764575005774,5.60796614,2843.5,2843.4,0.001]
[1764575007187,2.09117346,2843.5,2843.4,0.001]
[1764575009590,1.62437346,2843.5,2843.4,0.001]
[1764575010375,5.60796614,2843.5,2843.4,0.001]
[1764575010581,5.14116614,2843.5,2843.4,0.001]
[1764575010779,1.62437346,2843.5,2843.4,0.001]
[1764575010985,0.486004,2843.5,2843.4,0.001]
[1764575012060,4.46959668,2843.5,2843.4,0.001]
[1764575012261,11.16079902,2843.5,2843.4,0.001]
[1764575012881,7.64400634,2843.5,2843.4,0.001]
[1764575013492,11.16079902,2843.5,2843.4,0.001]
[1764575015115,0.952804,2843.5,2843.4,0.001]
[1764575015290,4.46959668,2843.5,2843.4,0.001]
[1764575016112,0.952804,2843.5,2843.4,0.001]
[1764575016576,0.486004,2843.5,2843.4,0.001]
[1764575017704,4.00279668,2843.5,2843.4,0.001]
[1764575017900,0.486004,2843.5,2843.4,0.001]
[1764575018680,4.00279668,2843.5,2843.4,0.001]
[1764575019292,4.46959668,2843.5,2843.4,0.001]
[1764575024584,0.486004,2843.5,2843.4,0.001]
[1764575024785,0.630504,2843.5,2843.4,0.001]
[1764575028109,0.703404,2843.5,2843.4,0.001]
[1764575030513,0.630504,2843.5,2843.4,0.001]
[1764575031914,0.707404,2843.5,2843.4,0.001]
[1764575032423,5.31571886,2843.5,2843.4,0.001]
[1764575032607,5.78411886,2843.5,2843.4,0.001]
[1764575032794,2.26732618,2843.5,2843.4,0.001]
[1764575032999,1.79892618,2843.5,2843.4,0.001]
[1764575035519,0.002,2843.5,2843.4,0.9142]
[1764575035701,6.69320234,2843.5,2843.4,0.4532]
[1764575036021,6.76700234,2843.5,2843.4,0.001]
[1764575036205,7.17250634,2843.5,2843.4,0.001]
[1764575038239,7.09870634,2843.5,2843.4,0.4532]